[Event "*** Titled Tuesday Blitz"]
[Site "Chess.com"]
[Date "2021.03.30"]
[Round "9"]
[White "Orest_Vovk"]
[Black "paulrusan"]
[Result "1-0"]
[WhiteElo "2484"]
[BlackElo "2317"]
[TimeControl "180+1"]
[EndTime "11:45:45 PDT"]
[Termination "Orest_Vovk won by resignation"]

1. Nf3 {[%clk 0:03:00.9]} 1... c5 {[%clk 0:02:58.1]} 2. Rg1 {[%clk 0:03:01.2]}
2... Nc6 {[%clk 0:02:51.6]} 3. g4 {[%clk 0:02:53.2]} 3... e5 {[%clk 0:02:51.2]}
4. d3 {[%clk 0:02:52.6]} 4... d5 {[%clk 0:02:46.5]} 5. c3 {[%clk 0:02:51.2]}
5... f6 {[%clk 0:02:42.8]} 6. g5 {[%clk 0:02:49]} 6... f5 {[%clk 0:02:40.1]} 7.
g6 {[%clk 0:02:44]} 7... hxg6 {[%clk 0:02:35.2]} 8. Rxg6 {[%clk 0:02:40.6]} 8...
Nge7 {[%clk 0:02:12.9]} 9. Rg5 {[%clk 0:02:31.6]} 9... g6 {[%clk 0:02:10.5]} 10.
h4 {[%clk 0:02:26]} 10... e4 {[%clk 0:02:04.5]} 11. dxe4 {[%clk 0:02:23.8]}
11... dxe4 {[%clk 0:02:04.4]} 12. Qxd8+ {[%clk 0:02:22.9]} 12... Nxd8 {[%clk
0:02:04.4]} 13. Ne5 {[%clk 0:02:21.8]} 13... Nf7 {[%clk 0:01:40.9]} 14. Nxg6
{[%clk 0:02:00.2]} 14... Nxg5 {[%clk 0:01:40.2]} 15. Nxh8 {[%clk 0:02:00.2]}
15... Ne6 {[%clk 0:01:39.7]} 16. h5 {[%clk 0:01:58.7]} 16... Bg7 {[%clk
0:01:35.4]} 17. Ng6 {[%clk 0:01:58.7]} 17... Nxg6 {[%clk 0:01:35.2]} 18. hxg6
{[%clk 0:01:59.6]} 18... Bd7 {[%clk 0:01:29.5]} 19. Na3 {[%clk 0:01:56.1]} 19...
O-O-O {[%clk 0:01:28.7]} 20. Bh3 {[%clk 0:01:46.9]} 20... Nf8 {[%clk 0:01:23.3]}
21. Bg5 {[%clk 0:01:42.1]} 21... Re8 {[%clk 0:01:22.7]} 22. Nc4 {[%clk
0:01:41.5]} 22... Kc7 {[%clk 0:01:16.8]} 23. Bf4+ {[%clk 0:01:36.8]} 23... Kc6
{[%clk 0:01:08.8]} 24. O-O-O {[%clk 0:01:36.1]} 24... Ne6 {[%clk 0:00:51.3]} 25.
Rd6+ {[%clk 0:01:20.4]} 25... Kb5 {[%clk 0:00:51.2]} 26. b3 {[%clk 0:00:59.7]}
26... b6 {[%clk 0:00:43.3]} 27. Rxd7 {[%clk 0:00:52.7]} 27... Nxf4 {[%clk
0:00:42.8]} 28. Rxg7 {[%clk 0:00:49]} 28... Nxh3 {[%clk 0:00:42.1]} 29. Nd6+
{[%clk 0:00:48.4]} 29... Kc6 {[%clk 0:00:38.8]} 30. Nxe8 {[%clk 0:00:49.3]}
30... Nxf2 {[%clk 0:00:36.5]} 31. Rc7+ {[%clk 0:00:48.8]} 31... Kb5 {[%clk
0:00:35.5]} 32. g7 {[%clk 0:00:49.7]} 1-0

[Event "*** Titled Tuesday Blitz"]
[Site "Chess.com"]
[Date "2021.03.30"]
[Round "9"]
[White "kekic76"]
[Black "Kapibara_Warri0r"]
[Result "1-0"]
[WhiteElo "2379"]
[BlackElo "2234"]
[TimeControl "180+1"]
[EndTime "11:45:45 PDT"]
[Termination "kekic76 won by resignation"]

1. e4 {[%clk 0:02:53]} 1... c6 {[%clk 0:02:58.6]} 2. Nc3 {[%clk 0:02:50.6]} 2...
d5 {[%clk 0:02:57.9]} 3. Nf3 {[%clk 0:02:50.1]} 3... d4 {[%clk 0:02:51.2]} 4.
Ne2 {[%clk 0:02:49.7]} 4... c5 {[%clk 0:02:52]} 5. Ng3 {[%clk 0:02:49]} 5... Nc6
{[%clk 0:02:51.7]} 6. Bb5 {[%clk 0:02:47.9]} 6... e6 {[%clk 0:02:46.2]} 7. O-O
{[%clk 0:02:46.8]} 7... Bd6 {[%clk 0:02:46.4]} 8. Bxc6+ {[%clk 0:02:46.2]} 8...
bxc6 {[%clk 0:02:46.4]} 9. d3 {[%clk 0:02:45.9]} 9... e5 {[%clk 0:02:45.3]} 10.
a4 {[%clk 0:02:42.6]} 10... Ne7 {[%clk 0:02:41.2]} 11. b3 {[%clk 0:02:42]} 11...
O-O {[%clk 0:02:40]} 12. Bd2 {[%clk 0:02:40.2]} 12... Kh8 {[%clk 0:02:39]} 13.
Nh4 {[%clk 0:02:34.3]} 13... f5 {[%clk 0:02:29.8]} 14. Nhxf5 {[%clk 0:02:31.9]}
14... Nxf5 {[%clk 0:02:30.7]} 15. Nxf5 {[%clk 0:02:30]} 15... Bxf5 {[%clk
0:02:31.6]} 16. exf5 {[%clk 0:02:30.1]} 16... Rxf5 {[%clk 0:02:32.5]} 17. f3
{[%clk 0:02:28.3]} 17... Qf6 {[%clk 0:02:25.4]} 18. Re1 {[%clk 0:02:27.7]} 18...
Rf8 {[%clk 0:02:24.7]} 19. Re4 {[%clk 0:02:27.6]} 19... Rh5 {[%clk 0:02:20]} 20.
Be1 {[%clk 0:02:25.3]} 20... Qg6 {[%clk 0:02:09.4]} 21. Bg3 {[%clk 0:02:23.8]}
21... Rhf5 {[%clk 0:02:03.4]} 22. Qe2 {[%clk 0:02:22.2]} 22... Qg5 {[%clk
0:01:56.7]} 23. Re1 {[%clk 0:02:20.6]} 23... Re8 {[%clk 0:01:48.2]} 24. Rg4
{[%clk 0:02:19.8]} 24... Qh5 {[%clk 0:01:43]} 25. Qe4 {[%clk 0:02:18.4]} 25...
Rg5 {[%clk 0:01:13.3]} 26. Rxg5 {[%clk 0:02:10.1]} 26... Qxg5 {[%clk 0:01:14.2]}
27. Qxc6 {[%clk 0:02:09.8]} 27... Qg6 {[%clk 0:01:14.4]} 28. Re4 {[%clk
0:01:52.9]} 28... Rf8 {[%clk 0:00:57]} 29. Bxe5 {[%clk 0:01:22.9]} 29... Bxe5
{[%clk 0:00:57.9]} 30. Qxg6 {[%clk 0:01:22.3]} 30... Bxh2+ {[%clk 0:00:58.6]}
31. Kxh2 {[%clk 0:01:22.7]} 31... hxg6 {[%clk 0:00:59.5]} 32. Re7 {[%clk
0:01:17.5]} 32... a6 {[%clk 0:00:47.7]} 33. Re6 {[%clk 0:01:13.5]} 33... Kh7
{[%clk 0:00:40.3]} 34. Rxa6 {[%clk 0:01:12.1]} 34... Re8 {[%clk 0:00:40.3]} 35.
Rc6 {[%clk 0:01:11.9]} 35... Re5 {[%clk 0:00:36.2]} 36. a5 {[%clk 0:01:06.2]}
36... Kh6 {[%clk 0:00:31.9]} 37. a6 {[%clk 0:01:06.2]} 37... Re7 {[%clk
0:00:30.3]} 38. Rxc5 {[%clk 0:01:05.2]} 38... Ra7 {[%clk 0:00:31]} 39. Ra5
{[%clk 0:01:04.7]} 39... g5 {[%clk 0:00:31.4]} 40. b4 {[%clk 0:01:04.8]} 1-0

[Event "*** Titled Tuesday Blitz"]
[Site "Chess.com"]
[Date "2021.03.30"]
[Round "9"]
[White "TosicSrecko"]
[Black "VD_coach"]
[Result "0-1"]
[WhiteElo "2320"]
[BlackElo "2486"]
[TimeControl "180+1"]
[EndTime "11:45:46 PDT"]
[Termination "VD_coach won by resignation"]

1. d4 {[%clk 0:03:00.9]} 1... Nf6 {[%clk 0:02:56.7]} 2. Bg5 {[%clk 0:03:01.1]}
2... Ne4 {[%clk 0:02:56.2]} 3. Bf4 {[%clk 0:03:01.4]} 3... d5 {[%clk 0:02:55.9]}
4. e3 {[%clk 0:03:01.5]} 4... e6 {[%clk 0:02:54.9]} 5. Bd3 {[%clk 0:03:01.5]}
5... Bd6 {[%clk 0:02:54.9]} 6. Bxe4 {[%clk 0:02:58.8]} 6... dxe4 {[%clk
0:02:54.8]} 7. Nc3 {[%clk 0:02:50.9]} 7... Bxf4 {[%clk 0:02:53.4]} 8. exf4
{[%clk 0:02:51.6]} 8... Nc6 {[%clk 0:01:55]} 9. Nge2 {[%clk 0:02:51.3]} 9... O-O
{[%clk 0:01:45.7]} 10. Nxe4 {[%clk 0:02:45.6]} 10... b6 {[%clk 0:01:45.9]} 11.
c3 {[%clk 0:02:38]} 11... Bb7 {[%clk 0:01:45.9]} 12. O-O {[%clk 0:02:28.2]}
12... Nxd4 {[%clk 0:01:42.3]} 13. Qxd4 {[%clk 0:02:24.2]} 13... Qxd4 {[%clk
0:01:42]} 14. Nxd4 {[%clk 0:02:24.8]} 14... Bxe4 {[%clk 0:01:41.9]} 15. Rfe1
{[%clk 0:02:19.2]} 15... Bd5 {[%clk 0:01:40.3]} 16. Nb5 {[%clk 0:01:52.7]} 16...
Rfc8 {[%clk 0:01:37.8]} 17. b3 {[%clk 0:01:30.2]} 17... a6 {[%clk 0:01:36.3]}
18. Nd4 {[%clk 0:01:30]} 18... c5 {[%clk 0:01:36.5]} 19. Nc2 {[%clk 0:01:27.8]}
19... Rd8 {[%clk 0:01:36.7]} 20. Rad1 {[%clk 0:01:24.8]} 20... Kf8 {[%clk
0:01:36.3]} 21. Ne3 {[%clk 0:01:19.5]} 21... a5 {[%clk 0:01:36.3]} 22. f5 {[%clk
0:01:16.5]} 22... a4 {[%clk 0:01:32]} 23. c4 {[%clk 0:01:14.6]} 23... Bc6 {[%clk
0:01:30.6]} 24. fxe6 {[%clk 0:01:13.5]} 24... fxe6 {[%clk 0:01:30.2]} 25. Ng4
{[%clk 0:01:11.3]} 25... axb3 {[%clk 0:01:21.8]} 26. axb3 {[%clk 0:01:10.8]}
26... Rxd1 {[%clk 0:01:21.5]} 27. Rxd1 {[%clk 0:01:10.4]} 27... Ra3 {[%clk
0:01:21.7]} 28. Ne5 {[%clk 0:01:07.7]} 28... Be4 {[%clk 0:01:20.5]} 29. Re1
{[%clk 0:00:59]} 29... Rxb3 {[%clk 0:01:18.4]} 30. f3 {[%clk 0:00:42.9]} 30...
Rb1 {[%clk 0:01:18.1]} 31. Rxb1 {[%clk 0:00:40.4]} 31... Bxb1 {[%clk 0:01:19]}
32. Nd7+ {[%clk 0:00:40.5]} 32... Ke7 {[%clk 0:01:19.4]} 33. Nxb6 {[%clk
0:00:41.4]} 33... Kd6 {[%clk 0:01:19.1]} 34. Na4 {[%clk 0:00:34.1]} 34... Ba2
{[%clk 0:01:16.6]} 35. Nb2 {[%clk 0:00:29.8]} 35... Ke5 {[%clk 0:01:16.6]} 36.
Nd3+ {[%clk 0:00:26.9]} 36... Kd4 {[%clk 0:01:16.3]} 37. Nf4 {[%clk 0:00:27.3]}
37... Bxc4 {[%clk 0:01:16.5]} 0-1

[Event "*** Titled Tuesday Blitz"]
[Site "Chess.com"]
[Date "2021.03.30"]
[Round "9"]
[White "dosto07"]
[Black "SilviusTiberius"]
[Result "0-1"]
[WhiteElo "2411"]
[BlackElo "2559"]
[TimeControl "180+1"]
[EndTime "11:45:48 PDT"]
[Termination "SilviusTiberius won on time"]

1. e4 {[%clk 0:03:00.9]} 1... e5 {[%clk 0:02:59.7]} 2. Nf3 {[%clk 0:03:00.6]}
2... Nc6 {[%clk 0:03:00.1]} 3. Bb5 {[%clk 0:03:00.5]} 3... Nf6 {[%clk
0:03:00.3]} 4. d3 {[%clk 0:02:52.5]} 4... d6 {[%clk 0:03:00.1]} 5. O-O {[%clk
0:02:50.1]} 5... g6 {[%clk 0:02:59.3]} 6. Nc3 {[%clk 0:02:47.9]} 6... Bg7 {[%clk
0:02:58.7]} 7. d4 {[%clk 0:02:46.1]} 7... exd4 {[%clk 0:02:51.2]} 8. Nxd4 {[%clk
0:02:45.6]} 8... Bd7 {[%clk 0:02:51.7]} 9. Bg5 {[%clk 0:02:39.3]} 9... h6 {[%clk
0:02:46.2]} 10. Bh4 {[%clk 0:02:36.4]} 10... O-O {[%clk 0:02:37.2]} 11. Bxc6
{[%clk 0:02:32.3]} 11... bxc6 {[%clk 0:02:34.9]} 12. f4 {[%clk 0:02:28.4]} 12...
Qb8 {[%clk 0:02:26.6]} 13. Qd2 {[%clk 0:02:16.4]} 13... Qxb2 {[%clk 0:02:18.6]}
14. Rab1 {[%clk 0:02:09.6]} 14... Nxe4 {[%clk 0:02:15.4]} 15. Nxe4 {[%clk
0:01:52.3]} 15... Qxd4+ {[%clk 0:02:15.7]} 16. Qxd4 {[%clk 0:01:46.7]} 16...
Bxd4+ {[%clk 0:02:16.6]} 17. Bf2 {[%clk 0:01:46.5]} 17... Bxf2+ {[%clk
0:02:13.7]} 18. Kxf2 {[%clk 0:01:46.2]} 18... Bf5 {[%clk 0:02:12.8]} 19. Ng3
{[%clk 0:01:30.7]} 19... Bxc2 {[%clk 0:02:08.1]} 20. Rb7 {[%clk 0:01:30]} 20...
Rfc8 {[%clk 0:02:03.3]} 21. Rc1 {[%clk 0:01:18.5]} 21... Ba4 {[%clk 0:02:01.6]}
22. f5 {[%clk 0:00:53.1]} 22... c5 {[%clk 0:01:56.2]} 23. fxg6 {[%clk
0:00:49.9]} 23... fxg6 {[%clk 0:01:55.4]} 24. Re1 {[%clk 0:00:48.2]} 24... Bc6
{[%clk 0:01:55.1]} 25. Rb3 {[%clk 0:00:43.6]} 25... Rf8+ {[%clk 0:01:54]} 26.
Kg1 {[%clk 0:00:42.9]} 26... Rae8 {[%clk 0:01:54.4]} 27. Rbe3 {[%clk 0:00:42.1]}
27... Rxe3 {[%clk 0:01:53.2]} 28. Rxe3 {[%clk 0:00:43]} 28... a5 {[%clk
0:01:51.4]} 29. h4 {[%clk 0:00:39.1]} 29... Rf4 {[%clk 0:01:48.4]} 30. h5 {[%clk
0:00:37.7]} 30... gxh5 {[%clk 0:01:40.3]} 31. Nxh5 {[%clk 0:00:36.3]} 31... Ra4
{[%clk 0:01:38.3]} 32. Re7 {[%clk 0:00:32.8]} 32... Rxa2 {[%clk 0:01:37]} 33.
Nf6+ {[%clk 0:00:27.4]} 33... Kf8 {[%clk 0:01:36.1]} 34. Rxc7 {[%clk 0:00:28.3]}
34... Bxg2 {[%clk 0:01:32.2]} 35. Nd7+ {[%clk 0:00:15.7]} 35... Ke8 {[%clk
0:01:27.3]} 36. Nf6+ {[%clk 0:00:14.8]} 36... Kd8 {[%clk 0:01:27.5]} 37. Ra7
{[%clk 0:00:13.7]} 37... c4 {[%clk 0:01:26]} 38. Ra8+ {[%clk 0:00:09.1]} 38...
Bxa8 {[%clk 0:01:24.9]} 0-1

[Event "*** Titled Tuesday Blitz"]
[Site "Chess.com"]
[Date "2021.03.30"]
[Round "9"]
[White "dpopadic"]
[Black "Mihnea2017"]
[Result "0-1"]
[WhiteElo "2292"]
[BlackElo "2459"]
[TimeControl "180+1"]
[EndTime "11:45:51 PDT"]
[Termination "Mihnea2017 won by resignation"]

1. e4 {[%clk 0:02:56.5]} 1... c6 {[%clk 0:02:58.1]} 2. d4 {[%clk 0:02:55.4]}
2... d5 {[%clk 0:02:58.1]} 3. Nd2 {[%clk 0:02:55.2]} 3... dxe4 {[%clk
0:02:57.3]} 4. Nxe4 {[%clk 0:02:55.3]} 4... Bf5 {[%clk 0:02:56.8]} 5. Ng3 {[%clk
0:02:55.1]} 5... Bg6 {[%clk 0:02:56.2]} 6. h4 {[%clk 0:02:55.3]} 6... h6 {[%clk
0:02:53.9]} 7. Nf3 {[%clk 0:02:55]} 7... e6 {[%clk 0:02:52.3]} 8. Ne5 {[%clk
0:02:53.7]} 8... Bh7 {[%clk 0:02:50.4]} 9. Bc4 {[%clk 0:02:52.8]} 9... Nd7
{[%clk 0:02:32.4]} 10. Qe2 {[%clk 0:02:52.2]} 10... Nxe5 {[%clk 0:02:23.8]} 11.
dxe5 {[%clk 0:02:51.4]} 11... Ne7 {[%clk 0:02:21.6]} 12. Bb3 {[%clk 0:02:49.1]}
12... Nd5 {[%clk 0:02:17.1]} 13. Bd2 {[%clk 0:02:47.3]} 13... Be7 {[%clk
0:02:15.6]} 14. h5 {[%clk 0:02:45.9]} 14... Bg5 {[%clk 0:02:12.2]} 15. O-O-O
{[%clk 0:02:45.5]} 15... Bxd2+ {[%clk 0:02:04.1]} 16. Rxd2 {[%clk 0:02:45.1]}
16... Qg5 {[%clk 0:02:04]} 17. Bxd5 {[%clk 0:02:28.8]} 17... exd5 {[%clk
0:02:02.1]} 18. e6 {[%clk 0:02:27]} 18... O-O {[%clk 0:02:01.6]} 19. e7 {[%clk
0:02:23.6]} 19... Rfe8 {[%clk 0:02:01.3]} 20. Re1 {[%clk 0:02:23.6]} 20... Rac8
{[%clk 0:01:51.2]} 21. Qe5 {[%clk 0:01:42.4]} 21... Qxe5 {[%clk 0:01:46.3]} 22.
Rxe5 {[%clk 0:01:42.3]} 22... f6 {[%clk 0:01:45.3]} 23. Re3 {[%clk 0:01:41.4]}
23... Rc7 {[%clk 0:01:44.7]} 24. c4 {[%clk 0:01:41.1]} 24... dxc4 {[%clk
0:01:40.5]} 25. Rde2 {[%clk 0:01:22.9]} 25... Kf7 {[%clk 0:01:40.3]} 26. f4
{[%clk 0:01:11.7]} 26... Rcxe7 {[%clk 0:01:39.5]} 27. Rxe7+ {[%clk 0:01:10.5]}
27... Rxe7 {[%clk 0:01:40.4]} 28. Rxe7+ {[%clk 0:01:09.4]} 28... Kxe7 {[%clk
0:01:41.3]} 29. Kd2 {[%clk 0:01:08.8]} 29... Kd6 {[%clk 0:01:40.5]} 30. Kc3
{[%clk 0:01:08.8]} 30... Kc5 {[%clk 0:01:35.8]} 31. a3 {[%clk 0:01:01.8]} 31...
b5 {[%clk 0:01:35.7]} 32. Nf1 {[%clk 0:00:43]} 32... a5 {[%clk 0:01:33.2]} 33.
Ne3 {[%clk 0:00:42.2]} 33... b4+ {[%clk 0:01:31.2]} 34. axb4+ {[%clk 0:00:41.4]}
34... axb4+ {[%clk 0:01:32.1]} 35. Kd2 {[%clk 0:00:41.6]} 35... Kd4 {[%clk
0:01:29.4]} 36. g3 {[%clk 0:00:37.4]} 36... Bd3 {[%clk 0:01:23.2]} 37. Nd1
{[%clk 0:00:31.8]} 37... c5 {[%clk 0:01:18.2]} 38. g4 {[%clk 0:00:28.8]} 38...
Be4 {[%clk 0:01:15.3]} 39. Nf2 {[%clk 0:00:24.7]} 39... Bf3 {[%clk 0:01:12.6]}
40. Nh3 {[%clk 0:00:20.1]} 40... Bxg4 {[%clk 0:01:11.8]} 0-1

[Event "*** Titled Tuesday Blitz"]
[Site "Chess.com"]
[Date "2021.03.30"]
[Round "9"]
[White "Pantata007"]
[Black "LamaChampetre"]
[Result "0-1"]
[WhiteElo "2347"]
[BlackElo "2224"]
[TimeControl "180+1"]
[EndTime "11:45:51 PDT"]
[Termination "LamaChampetre won on time"]

1. d4 {[%clk 0:00:58.2]} 1... Nf6 {[%clk 0:02:58.4]} 2. c4 {[%clk 0:00:57.1]}
2... g6 {[%clk 0:02:58]} 3. Nc3 {[%clk 0:00:56.8]} 3... d5 {[%clk 0:02:58]} 4.
cxd5 {[%clk 0:00:56.7]} 4... Nxd5 {[%clk 0:02:58.9]} 5. e4 {[%clk 0:00:56.9]}
5... Nxc3 {[%clk 0:02:58.7]} 6. bxc3 {[%clk 0:00:57.1]} 6... Bg7 {[%clk
0:02:59.6]} 7. Nf3 {[%clk 0:00:56.9]} 7... c5 {[%clk 0:02:59.3]} 8. Be3 {[%clk
0:00:56.8]} 8... Nc6 {[%clk 0:02:57.3]} 9. Rc1 {[%clk 0:00:55.2]} 9... Qa5
{[%clk 0:02:55.8]} 10. d5 {[%clk 0:00:52]} 10... Ne5 {[%clk 0:02:36.9]} 11. Nd2
{[%clk 0:00:38.8]} 11... Ng4 {[%clk 0:02:30.6]} 12. Bg5 {[%clk 0:00:33.2]} 12...
Bxc3 {[%clk 0:02:29.6]} 13. Be2 {[%clk 0:00:30.2]} 13... Nf6 {[%clk 0:02:03]}
14. O-O {[%clk 0:00:29.4]} 14... O-O {[%clk 0:02:03]} 15. Nc4 {[%clk 0:00:28.5]}
15... Qc7 {[%clk 0:01:42]} 16. Rxc3 {[%clk 0:00:15.4]} 16... Nxe4 {[%clk
0:01:41.6]} 17. Rg3 {[%clk 0:00:10.6]} 17... Nxg3 {[%clk 0:01:41.4]} 18. hxg3
{[%clk 0:00:11]} 18... b5 {[%clk 0:01:39.3]} 19. Ne3 {[%clk 0:00:08.9]} 19... c4
{[%clk 0:01:38.5]} 20. Qd4 {[%clk 0:00:07.6]} 20... Rd8 {[%clk 0:01:24.7]} 21.
Bf4 {[%clk 0:00:06]} 21... Qd7 {[%clk 0:01:20.7]} 22. Bf3 {[%clk 0:00:03.5]}
22... Bb7 {[%clk 0:01:17.7]} 23. Rd1 {[%clk 0:00:03.2]} 23... Rac8 {[%clk
0:01:16.2]} 24. Ng4 {[%clk 0:00:03.2]} 24... f6 {[%clk 0:01:07.5]} 25. d6 {[%clk
0:00:02.1]} 25... Bxf3 {[%clk 0:01:04.9]} 26. gxf3 {[%clk 0:00:01.7]} 26... Qe6
{[%clk 0:01:00]} 27. dxe7 {[%clk 0:00:01.1]} 27... Rxd4 {[%clk 0:01:00]} 0-1

[Event "*** Titled Tuesday Blitz"]
[Site "Chess.com"]
[Date "2021.03.30"]
[Round "9"]
[White "wonderfultime"]
[Black "DanielNaroditsky"]
[Result "0-1"]
[WhiteElo "2988"]
[BlackElo "3063"]
[TimeControl "180+1"]
[EndTime "11:45:52 PDT"]
[Termination "DanielNaroditsky won by resignation"]

1. d4 {[%clk 0:02:58.7]} 1... d6 {[%clk 0:02:59.1]} 2. Nf3 {[%clk 0:02:55.3]}
2... Bg4 {[%clk 0:02:58.9]} 3. Bg5 {[%clk 0:02:50.9]} 3... c6 {[%clk 0:02:58.2]}
4. c3 {[%clk 0:02:49.1]} 4... Nd7 {[%clk 0:02:58.1]} 5. Nbd2 {[%clk 0:02:44.8]}
5... Ngf6 {[%clk 0:02:57.8]} 6. e4 {[%clk 0:02:44.4]} 6... e5 {[%clk 0:02:58.4]}
7. h3 {[%clk 0:02:41]} 7... Bh5 {[%clk 0:02:58.6]} 8. Bd3 {[%clk 0:02:41.1]}
8... Be7 {[%clk 0:02:58]} 9. O-O {[%clk 0:02:41.6]} 9... O-O {[%clk 0:02:58.4]}
10. Re1 {[%clk 0:02:42.2]} 10... Qc7 {[%clk 0:02:56]} 11. Qb3 {[%clk 0:02:38.7]}
11... Rfe8 {[%clk 0:02:46.3]} 12. Nh4 {[%clk 0:02:37.6]} 12... h6 {[%clk
0:02:42.8]} 13. Bxf6 {[%clk 0:02:18.2]} 13... Bxf6 {[%clk 0:02:37]} 14. Nf5
{[%clk 0:02:19.1]} 14... Bg6 {[%clk 0:02:28.2]} 15. Nf3 {[%clk 0:02:17.8]} 15...
Bxf5 {[%clk 0:02:24.5]} 16. exf5 {[%clk 0:02:17.6]} 16... d5 {[%clk 0:02:24.9]}
17. dxe5 {[%clk 0:02:06.8]} 17... Nxe5 {[%clk 0:02:14.1]} 18. Nxe5 {[%clk
0:02:06.6]} 18... Bxe5 {[%clk 0:02:13.4]} 19. c4 {[%clk 0:02:07.3]} 19... dxc4
{[%clk 0:01:50.5]} 20. Bxc4 {[%clk 0:02:06.9]} 20... b5 {[%clk 0:01:50.3]} 21.
Bf1 {[%clk 0:01:50.8]} 21... Bd4 {[%clk 0:01:50.1]} 22. Rxe8+ {[%clk 0:01:25.9]}
22... Rxe8 {[%clk 0:01:51]} 23. Rd1 {[%clk 0:01:26.5]} 23... Qf4 {[%clk
0:01:29.4]} 24. Qc2 {[%clk 0:01:26.6]} 24... c5 {[%clk 0:01:25.4]} 25. b3 {[%clk
0:01:12.6]} 25... a6 {[%clk 0:01:16.7]} 26. Bd3 {[%clk 0:01:10.4]} 26... h5
{[%clk 0:01:12.1]} 27. Rf1 {[%clk 0:00:58.5]} 27... h4 {[%clk 0:01:12]} 28. a4
{[%clk 0:00:58.2]} 28... Be5 {[%clk 0:01:11.6]} 29. g3 {[%clk 0:00:17.8]} 29...
hxg3 {[%clk 0:01:10.2]} 30. Kg2 {[%clk 0:00:07]} 30... gxf2 {[%clk 0:01:06.6]}
31. Qxf2 {[%clk 0:00:06.7]} 31... Qh2+ {[%clk 0:01:05.6]} 32. Kf3 {[%clk
0:00:03.4]} 32... Qxh3+ {[%clk 0:01:06.5]} 33. Ke4 {[%clk 0:00:01.3]} 33... Bd4+
{[%clk 0:01:06.2]} 0-1

[Event "*** Titled Tuesday Blitz"]
[Site "Chess.com"]
[Date "2021.03.30"]
[Round "9"]
[White "Bigfish1995"]
[Black "Sadykov_Ramil"]
[Result "1-0"]
[WhiteElo "2989"]
[BlackElo "2600"]
[TimeControl "180+1"]
[EndTime "11:45:52 PDT"]
[Termination "Bigfish1995 won by checkmate"]

1. g4 {[%clk 0:03:00.9]} 1... d5 {[%clk 0:02:53.1]} 2. g5 {[%clk 0:02:59.2]}
2... e5 {[%clk 0:02:52.3]} 3. d4 {[%clk 0:02:58.7]} 3... exd4 {[%clk 0:02:49.7]}
4. Qxd4 {[%clk 0:02:55.4]} 4... c5 {[%clk 0:02:46.4]} 5. Qd1 {[%clk 0:02:54.4]}
5... Nc6 {[%clk 0:02:46.1]} 6. Bg2 {[%clk 0:02:54.6]} 6... Be6 {[%clk
0:02:41.6]} 7. Nh3 {[%clk 0:02:54.2]} 7... Be7 {[%clk 0:02:27.8]} 8. Nc3 {[%clk
0:02:48.2]} 8... d4 {[%clk 0:02:20.6]} 9. Ne4 {[%clk 0:02:47.9]} 9... f5 {[%clk
0:02:01.3]} 10. Ng3 {[%clk 0:02:22.2]} 10... Bd6 {[%clk 0:01:25.3]} 11. Nf4
{[%clk 0:02:19.7]} 11... Bxf4 {[%clk 0:01:24.8]} 12. Bxf4 {[%clk 0:02:18.9]}
12... Nge7 {[%clk 0:01:25.5]} 13. h4 {[%clk 0:02:13.4]} 13... Nd5 {[%clk
0:01:19.8]} 14. Bd2 {[%clk 0:02:10.4]} 14... Qd6 {[%clk 0:01:12.1]} 15. c4
{[%clk 0:01:56.1]} 15... Nf4 {[%clk 0:01:00.1]} 16. Bxc6+ {[%clk 0:01:27.5]}
16... bxc6 {[%clk 0:00:57.9]} 17. Qa4 {[%clk 0:01:28]} 17... O-O {[%clk
0:00:47.3]} 18. O-O-O {[%clk 0:01:27.1]} 18... Rab8 {[%clk 0:00:33.1]} 19. b3
{[%clk 0:01:25.4]} 19... d3 {[%clk 0:00:31.7]} 20. Bc3 {[%clk 0:01:16.8]} 20...
Qc7 {[%clk 0:00:12.7]} 21. exd3 {[%clk 0:01:12.7]} 21... Rfd8 {[%clk 0:00:12]}
22. Kc2 {[%clk 0:01:10.1]} 22... Nxd3 {[%clk 0:00:07.5]} 23. Rxd3 {[%clk
0:01:07.5]} 23... Rxd3 {[%clk 0:00:08.4]} 24. Kxd3 {[%clk 0:01:07.7]} 24... Rd8+
{[%clk 0:00:06.9]} 25. Kc2 {[%clk 0:01:06.4]} 25... Qf4 {[%clk 0:00:07.5]} 26.
Qxc6 {[%clk 0:01:05.2]} 26... Qxf2+ {[%clk 0:00:07.3]} 27. Kb1 {[%clk
0:01:05.6]} 27... Bxc4 {[%clk 0:00:03.3]} 28. Qc7 {[%clk 0:01:02]} 28... Bd3+
{[%clk 0:00:02.6]} 29. Ka1 {[%clk 0:01:02.3]} 29... Re8 {[%clk 0:00:02.9]} 30.
Qxg7# {[%clk 0:01:01.6]} 1-0

[Event "*** Titled Tuesday Blitz"]
[Site "Chess.com"]
[Date "2021.03.30"]
[Round "9"]
[White "tusplingher"]
[Black "Oligan22"]
[Result "0-1"]
[WhiteElo "2307"]
[BlackElo "2516"]
[TimeControl "180+1"]
[EndTime "11:45:54 PDT"]
[Termination "Oligan22 won by resignation"]

1. e4 {[%clk 0:03:00.9]} 1... d6 {[%clk 0:02:59.9]} 2. d4 {[%clk 0:03:00.4]}
2... Nf6 {[%clk 0:03:00.5]} 3. Nc3 {[%clk 0:03:00]} 3... e5 {[%clk 0:02:59.5]}
4. Nf3 {[%clk 0:02:56.9]} 4... Nbd7 {[%clk 0:02:59]} 5. Bc4 {[%clk 0:02:54.7]}
5... Be7 {[%clk 0:02:59.1]} 6. dxe5 {[%clk 0:02:53.8]} 6... dxe5 {[%clk
0:02:39.1]} 7. Bxf7+ {[%clk 0:02:47.4]} 7... Kxf7 {[%clk 0:02:39.3]} 8. Ng5+
{[%clk 0:02:47.2]} 8... Kg8 {[%clk 0:02:39.7]} 9. Ne6 {[%clk 0:02:32.6]} 9...
Qe8 {[%clk 0:02:39.7]} 10. Nxc7 {[%clk 0:02:32.8]} 10... Qg6 {[%clk 0:02:39.9]}
11. N3d5 {[%clk 0:02:18.9]} 11... Qxe4+ {[%clk 0:02:27.2]} 12. Be3 {[%clk
0:02:14.7]} 12... Nxd5 {[%clk 0:02:23.6]} 13. Nxd5 {[%clk 0:02:13.4]} 13... Bf6
{[%clk 0:01:55.6]} 14. f3 {[%clk 0:02:09.3]} 14... Qh4+ {[%clk 0:01:48.8]} 15.
g3 {[%clk 0:02:07.9]} 15... Qc4 {[%clk 0:01:46.5]} 16. b3 {[%clk 0:01:58.2]}
16... Qc6 {[%clk 0:01:39.3]} 17. O-O {[%clk 0:01:56.5]} 17... Kf7 {[%clk
0:01:29.4]} 18. f4 {[%clk 0:01:44.5]} 18... e4 {[%clk 0:01:29.3]} 19. Rc1 {[%clk
0:01:27.3]} 19... Nb6 {[%clk 0:01:29.4]} 20. Bxb6 {[%clk 0:01:26.4]} 20... axb6
{[%clk 0:01:26.9]} 21. c4 {[%clk 0:01:26.1]} 21... Rxa2 {[%clk 0:01:17.3]} 22.
Rc2 {[%clk 0:01:09.7]} 22... Rxc2 {[%clk 0:01:13.8]} 23. Qxc2 {[%clk 0:01:09.6]}
23... Be6 {[%clk 0:01:05.1]} 24. Nxf6 {[%clk 0:00:45.6]} 24... gxf6 {[%clk
0:01:02.4]} 25. f5 {[%clk 0:00:46]} 25... Qc5+ {[%clk 0:01:00.4]} 26. Kh1 {[%clk
0:00:45.3]} 26... Bxf5 {[%clk 0:00:57.7]} 27. Qe2 {[%clk 0:00:37.6]} 27... e3
{[%clk 0:00:52.3]} 28. Qh5+ {[%clk 0:00:37]} 28... Bg6 {[%clk 0:00:52.7]} 29.
Qe2 {[%clk 0:00:29.5]} 29... Rd8 {[%clk 0:00:49]} 30. Qb2 {[%clk 0:00:26.5]}
30... Be4+ {[%clk 0:00:39.2]} 31. Kg1 {[%clk 0:00:26.6]} 31... e2+ {[%clk
0:00:39.6]} 0-1